bitfinex/quotes_ETHUSD_20241116
["timestamp","ask_amount","ask_price","bid_price","bid_amount"]
[1731784510989,3.1586236,3181.0,3180.5,3.14409]
[1731784511335,3.1586136,3181.0,3180.6,0.7545]
[1731784511544,3.14376,3180.9,3180.6,0.7545]
[1731784512429,0.0149436,3181.0,3180.6,0.7545]
[1731784513634,0.0149436,3181.0,3180.6,3.89853]
[1731784513843,0.0149436,3181.0,3180.6,1.49633308]
[1731784516331,0.0149436,3181.0,3180.6,0.7545]
[1731784516533,3.14378,3180.9,3180.6,0.7545]
[1731784518134,0.0149436,3181.0,3180.6,0.7545]
[1731784519601,0.0149436,3181.0,3180.9,3.14376]
[1731784519914,0.0149436,3181.0,3180.9,7.2501336]
[1731784520120,0.0149436,3181.0,3180.9,8.62915562]
[1731784520290,0.0149436,3181.0,3180.9,8.56628948]
[1731784520491,0.0149436,3181.0,3180.9,8.25351588]
[1731784520806,0.0149436,3181.0,3180.9,8.5659906]
[1731784521497,0.0149436,3181.0,3180.9,9.19533529]
[1731784522142,0.0149436,3181.0,3180.9,9.74533529]
[1731784522445,0.0149436,3181.0,3180.9,9.74696057]
[1731784522944,0.0149436,3181.0,3180.9,9.75696057]
[1731784523400,3.14232,3182.4,3181.7,3.14289]
[1731784523600,3.14232,3182.4,3181.8,4.250689]
[1731784524014,3.14237,3182.4,3181.8,1.107889]
[1731784524235,3.14238,3182.3,3181.8,1.107889]
[1731784525639,3.14261,3182.1,3181.8,0.7936]
[1731784525838,3.14287,3181.8,3181.5,1.1077]
[1731784526537,3.5997,3182.1,3181.5,1.1077]
[1731784526735,3.14281,3181.9,3181.5,1.1077]
[1731784527441,3.14301,3181.7,3181.5,1.1077]
[1731784527791,3.1428,3181.9,3181.5,1.1077]
[1731784527994,3.14294,3181.8,3181.5,0.7936]
[1731784528233,3.14303,3181.7,3181.5,0.7936]
[1731784528609,3.1428,3181.9,3181.5,0.7936]
[1731784528804,3.14297,3181.7,3181.5,0.7936]
[1731784530207,3.538787,3181.9,3181.5,0.7936]
[1731784530709,3.14294,3181.8,3181.5,0.7936]
[1731784531246,3.538787,3181.9,3181.5,0.7936]
[1731784531247,3.14298,3181.7,3181.5,0.7936]
[1731784531814,3.14307,3181.6,3181.5,0.7936]
[1731784533756,3.14326,3181.5,3181.2,0.7936]
[1731784534064,0.4571,3181.8,3181.2,0.7936]
[1731784534065,3.14336,3181.3,3181.2,0.7936]
[1731784534221,3.1435,3181.2,3180.9,1.42294469]
[1731784534423,3.14357,3181.1,3180.9,1.42294469]
[1731784534866,3.14346,3181.2,3180.9,1.42294469]
[1731784535656,3.14382,3180.9,3180.5,0.7936]
[1731784536648,3.14366,3181.0,3180.5,0.7936]
[1731784536850,3.14379,3180.9,3180.5,0.7936]
[1731784538455,3.14394,3180.8,3180.5,0.7936]
[1731784538614,3.14379,3180.9,3180.5,0.7936]
[1731784540765,0.4571,3181.3,3180.5,0.7936]
[1731784540766,3.14386,3180.8,3180.5,0.7936]
[1731784540951,3.14406,3180.6,3180.2,0.3120622]
[1731784541269,3.14406,3180.6,3179.5,0.8242]
[1731784541270,3.14465,3180.0,3179.5,0.8242]
[1731784541569,3.14526,3179.4,3179.2,0.8242]
[1731784543025,3.14534,3179.3,3179.2,0.8242]
[1731784543519,3.14485,3179.8,3179.2,0.8242]
[1731784543720,3.14472,3180.0,3179.5,0.8242]
[1731784543960,3.14485,3179.8,3179.5,0.8242]
[1731784544167,3.14435,3180.3,3179.5,0.8242]
[1731784544392,3.14493,3179.8,3179.5,0.8242]
[1731784544917,3.14448,3180.2,3179.6,3.145]
[1731784545058,3.60138,3180.4,3179.7,3.14494]
[1731784545258,3.14376,3180.9,3179.6,0.06289282]
[1731784545259,3.14438,3180.3,3179.8,0.32078328]
[1731784545506,3.14447,3180.2,3179.6,5.91261086]
[1731784545801,3.14436,3180.3,3179.7,6.96913]
[1731784545958,0.4571,3180.7,3179.7,3.8242]
[1731784546157,3.14427,3180.4,3179.7,3.8870916]
[1731784546400,3.14427,3180.4,3179.8,3.14482]
[1731784546599,3.14436,3180.3,3179.7,4.5654546]
[1731784546899,3.14427,3180.4,3179.8,3.0]
[1731784547412,3.14427,3180.4,3180.0,0.8242]
[1731784547563,3.14427,3180.4,3180.0,1.521103]
[1731784547760,3.14408,3180.6,3180.0,4.22578104]
[1731784547980,3.14389,3180.8,3180.1,0.06288573]
[1731784548159,3.14389,3180.8,3180.2,0.8242]
[1731784549195,3.14396,3180.7,3180.2,0.8242]
[1731784549598,3.14376,3180.9,3180.2,3.96862]
[1731784549780,3.14376,3180.9,3180.2,5.0201041]
[1731784550616,3.14357,3181.1,3180.4,3.14419]
[1731784550804,3.14339,3181.3,3180.5,0.06287721]
[1731784551009,3.14339,3181.3,3180.6,3.14405]
[1731784551010,3.14347,3181.2,3180.6,3.14405]
[1731784551175,3.1439,3180.8,3180.4,0.8242]
[1731784551511,3.14327,3181.4,3180.4,0.8242]
[1731784551512,0.4571,3181.1,3180.4,0.8242]
[1731784551810,3.14383,3180.9,3180.4,0.8242]
[1731784552025,3.14369,3181.0,3180.4,0.8242]
[1731784552227,3.14348,3181.2,3180.5,3.0]
[1731784552441,3.14367,3181.0,3180.4,4.32621241]
[1731784552598,3.14348,3181.2,3180.5,3.14413]
[1731784552985,3.14364,3181.1,3180.5,3.14413]
[1731784553185,3.14364,3181.1,3180.5,4.47606005]
[1731784553726,3.14348,3181.2,3180.5,1.33193005]
[1731784554021,3.14366,3181.0,3180.5,4.33193005]
[1731784555619,3.14357,3181.1,3180.5,4.33193005]
[1731784555823,3.14357,3181.1,3180.5,7.47607005]
[1731784556005,3.14357,3181.1,3180.6,0.88022825]
[1731784557103,3.14367,3181.0,3180.8,0.62714069]
[1731784557445,3.14376,3180.9,3180.8,0.62714069]
[1731784559331,3.14357,3181.1,3180.4,0.8242]
[1731784559545,3.14451,3180.2,3179.9,1.12708015]
[1731784559729,3.14455,3180.1,3179.9,1.12708015]
[1731784559928,3.14455,3180.1,3179.9,0.8151]
[1731784560866,3.14461,3180.1,3179.9,0.8151]
[1731784562436,6.28884,3180.3,3179.9,0.8151]
[1731784562864,3.14447,3180.2,3179.9,0.8151]
[1731784563066,3.14465,3180.0,3179.6,0.8151]
[1731784563271,3.14465,3180.0,3179.6,1.57260121]
[1731784563481,3.1448,3179.9,3179.6,1.57260121]
[1731784563667,3.14465,3180.0,3179.6,1.57260121]
[1731784563849,3.14465,3180.0,3179.6,0.8151]
[1731784564051,3.14475,3179.9,3179.6,0.8151]
[1731784564268,3.14485,3179.8,3179.6,0.8151]
[1731784565181,3.14495,3179.7,3179.6,0.8151]
[1731784565336,3.14495,3179.7,3179.2,0.8151]
[1731784565685,3.14485,3179.8,3179.3,0.38151]
[1731784565686,3.14507,3179.6,3179.3,0.38151]
[1731784566049,3.60126,3180.5,3179.3,0.38151]
[1731784566250,3.14471,3180.0,3179.4,0.06289567]
[1731784566468,3.14491,3179.8,3179.5,0.34444057]
[1731784566634,3.14491,3179.8,3179.4,0.62431044]
[1731784566635,3.14496,3179.7,3179.4,0.62431044]
[1731784567456,3.14478,3179.9,3179.4,0.62431044]
[1731784567692,3.14467,3180.0,3179.4,0.62431044]
[1731784568053,3.14495,3179.7,3179.4,0.62431044]
[1731784568262,3.14495,3179.7,3179.4,0.80640248]
[1731784568495,3.14507,3179.6,3179.4,0.80640248]
[1731784569370,3.14507,3179.6,3179.4,0.62431044]
[1731784570245,3.14514,3179.5,3179.4,0.62431044]
[1731784571142,3.14507,3179.6,3179.4,0.62431044]
[1731784571382,3.14514,3179.5,3179.4,0.62431044]
[1731784572491,3.60224,3179.5,3179.4,0.62431044]
[1731784574589,3.14554,3179.1,3179.0,0.8151]
[1731784574946,0.4571,3179.5,3178.6,0.8151]
[1731784575152,3.1459,3178.8,3178.6,0.8151]
[1731784575394,3.14565,3179.0,3178.6,0.8151]
[1731784575547,3.14594,3178.7,3178.6,0.8151]
[1731784576503,3.14594,3178.7,3178.6,1.4560176]
[1731784576701,3.14626,3178.4,3178.3,0.8151]
[1731784576846,3.14626,3178.4,3178.0,0.8151]
[1731784577049,3.14653,3178.1,3178.0,1.84443768]
[1731784577251,0.4571,3179.0,3178.0,1.84443768]
[1731784577252,0.4571,3179.0,3178.0,0.8151]
[1731784577483,3.14653,3178.1,3178.0,0.8151]
[1731784577663,3.14645,3178.2,3178.0,0.6199771]
[1731784577859,3.14636,3178.3,3178.0,0.6199771]
[1731784578106,3.14597,3178.7,3178.0,0.6199771]
[1731784578339,0.4571,3178.8,3178.0,0.6199771]
[1731784578340,3.14603,3178.6,3178.1,1.15216371]
[1731784578700,3.14594,3178.7,3178.1,1.15216371]
[1731784578896,0.4571,3179.1,3178.1,1.15216371]
[1731784578897,3.14604,3178.6,3178.1,1.15216371]
[1731784579193,3.14584,3178.8,3178.1,1.15216371]
[1731784579554,3.14574,3178.9,3178.2,3.17721408]
[1731784579694,3.14554,3179.2,3178.5,3.14612]
[1731784579895,3.14526,3179.4,3178.7,3.32459759]
[1731784580099,0.4571,3179.8,3179.0,3.14555]
[1731784580100,3.145,3179.7,3179.0,3.14555]
[1731784580411,3.14515,3179.5,3179.1,0.06290287]
[1731784580922,3.14496,3179.7,3179.1,3.0]
[1731784581138,3.14505,3179.6,3179.2,1.3522582]
[1731784581469,3.14508,3179.6,3179.2,1.3522582]
[1731784582343,3.14531,3179.4,3179.2,1.3522582]
[1731784582532,3.14531,3179.4,3179.2,0.7755]
[1731784582932,3.14564,3179.0,3178.9,0.7755]
[1731784583174,3.14594,3178.7,3178.6,0.63249781]
[1731784583475,3.14573,3179.0,3178.6,0.63249781]
[1731784583659,3.1459,3178.8,3178.6,0.63249781]
[1731784583834,3.14594,3178.7,3178.6,0.63249781]
[1731784584035,3.14588,3178.8,3178.6,0.63249781]
[1731784585284,3.14588,3178.8,3178.7,0.23416944]
[1731784586176,3.14594,3178.7,3178.6,0.63249781]
[1731784586335,3.14594,3178.7,3178.6,0.86676167]
[1731784586733,3.14549,3179.2,3178.6,0.63249781]
[1731784586979,3.14594,3178.7,3178.6,0.63249781]
[1731784589250,3.14626,3178.4,3178.0,1.0897]
[1731784590690,3.14626,3178.4,3178.3,0.6360695]
[1731784590893,0.4571,3179.1,3178.3,0.6360695]
[1731784591071,3.1461,3178.6,3178.3,0.6360695]
[1731784592460,6.29183,3178.8,3178.3,0.6360695]
[1731784593193,3.14614,3178.5,3178.3,0.6360695]
[1731784594157,3.14623,3178.4,3178.3,0.6360695]
[1731784597515,3.14598,3178.7,3178.3,0.6360695]
[1731784597793,3.60286,3178.9,3178.3,1.75487645]
[1731784597794,3.14584,3178.8,3178.3,1.75487645]
[1731784598348,3.14584,3178.8,3178.3,1.3912695]
[1731784598349,3.14594,3178.7,3178.3,1.3912695]
[1731784600061,3.14585,3178.8,3178.3,4.5375895]
[1731784600261,3.60284,3178.9,3178.3,4.5375895]
[1731784600614,3.60284,3178.9,3178.3,1.3912695]
[1731784600772,3.14586,3178.8,3178.3,1.3912695]
[1731784600975,3.14574,3178.9,3178.3,5.33738545]
[1731784601180,0.4571,3179.2,3178.3,5.33738545]
[1731784601376,3.14576,3178.9,3178.3,5.33738545]
[1731784601579,3.14584,3178.8,3178.3,2.19110545]
[1731784601813,3.14576,3178.9,3178.4,0.21911055]
[1731784602315,3.14566,3179.0,3178.4,3.36532055]
[1731784602494,3.14556,3179.1,3178.6,3.14603]
[1731784602663,3.14556,3179.1,3178.4,0.21911055]
[1731784603013,3.14576,3178.9,3178.5,0.5410216]
[1731784603368,3.14556,3179.1,3178.5,0.5410216]
[1731784603564,3.14574,3178.9,3178.5,0.5410216]
[1731784604915,3.14556,3179.1,3178.5,0.5410216]
[1731784605421,3.14556,3179.1,3178.5,3.6871516]
[1731784605573,3.14556,3179.1,3178.6,0.72204622]
[1731784606226,3.14547,3179.2,3178.6,0.72204622]
[1731784607437,3.14547,3179.2,3178.6,3.86805622]
[1731784607603,3.14547,3179.2,3178.8,0.8123]
[1731784608080,3.1452,3179.5,3178.9,3.14573]
[1731784608287,3.14525,3179.4,3179.0,0.395803]
[1731784608586,3.14525,3179.4,3178.9,3.0]
[1731784609296,3.14526,3179.4,3178.9,3.0]
[1731784610233,3.14534,3179.3,3178.9,3.0]
[1731784610399,3.14553,3179.2,3178.8,1.1265]
[1731784612980,3.14531,3179.4,3178.8,1.1265]
[1731784613219,3.14531,3179.4,3178.8,1.91788974]
[1731784613417,3.14515,3179.5,3178.8,1.98079889]
[1731784613579,3.14515,3179.5,3178.9,3.14568]
[1731784614005,3.14507,3179.6,3178.9,3.14568]
[1731784614209,3.14507,3179.6,3179.1,0.7579]
[1731784614430,3.14507,3179.6,3179.1,3.90344]
[1731784614784,3.14496,3179.7,3179.1,3.90344]
[1731784614980,3.14512,3179.6,3179.1,0.7579]
[1731784615689,3.14521,3179.5,3179.1,0.7579]
[1731784616088,0.4571,3180.1,3179.5,3.0]
[1731784616295,3.14396,3180.7,3179.8,3.14484]
[1731784616614,3.14396,3180.7,3180.1,0.8316]
[1731784616820,3.14406,3180.6,3180.1,0.8316]
[1731784618347,3.14396,3180.7,3180.1,0.8316]
[1731784618496,3.14396,3180.7,3180.1,3.97614]
[1731784618834,3.14396,3180.7,3180.1,0.8316]
[1731784618980,3.14412,3180.6,3180.1,0.8316]
[1731784619424,6.45389,3180.8,3180.1,4.673722]
[1731784619730,3.14389,3180.8,3180.2,3.14444]
[1731784621933,3.14406,3180.6,3180.1,4.529222]
[1731784622234,3.14398,3180.7,3180.2,0.7673842]
[1731784622384,3.14389,3180.8,3180.2,0.7673842]
[1731784623043,3.14389,3180.8,3180.2,3.9118142]
[1731784623200,3.14389,3180.8,3180.3,3.14435]
[1731784623402,3.14368,3181.0,3180.4,3.14419]
[1731784623735,3.60067,3181.1,3180.4,3.14416]
[1731784623904,3.60067,3181.1,3180.2,0.8302655]
[1731784623905,3.14364,3181.1,3180.5,3.20694123]
[1731784624232,3.1435,3181.2,3180.3,0.7603]
[1731784624537,3.6004,3181.4,3180.5,3.14409]
[1731784624838,3.1433,3181.4,3180.8,0.7603]
[1731784625136,3.1433,3181.4,3180.8,3.90413]
[1731784625354,3.14309,3181.6,3180.9,3.14368]
[1731784625639,3.538807,3181.9,3181.2,3.90368]
[1731784625640,3.14281,3181.9,3181.2,3.90368]
[1731784625787,3.14281,3181.9,3181.2,3.96654306]
[1731784625992,3.14268,3182.0,3181.3,3.14332]
[1731784626205,3.14278,3181.9,3181.3,3.14332]
[1731784626422,0.674226,3182.0,3181.2,3.7603]
[1731784626423,0.674226,3182.0,3181.2,3.82316355]
[1731784626592,3.14298,3181.7,3181.2,0.7603]
[1731784626790,3.1431,3181.6,3181.2,0.7603]
[1731784627025,0.4571,3182.2,3181.2,0.7603]
[1731784627205,3.14335,3181.4,3181.2,0.7603]
[1731784627631,3.14335,3181.4,3180.7,0.7603]
[1731784627791,3.14354,3181.2,3180.7,3.7603]
[1731784628135,3.14354,3181.2,3180.7,0.7603]
[1731784628645,3.14328,3181.4,3180.8,6.14382]
[1731784628942,3.1431,3181.6,3181.0,3.14366]
[1731784629149,3.14299,3181.7,3181.1,4.0320897]
[1731784629287,3.14311,3181.6,3181.1,0.8257]
[1731784629489,3.14317,3181.5,3181.1,0.8257]
[1731784629997,3.14299,3181.7,3181.1,0.8257]
[1731784630747,3.14308,3181.6,3181.1,0.8257]
[1731784630929,3.14319,3181.5,3181.1,0.8257]
[1731784631297,0.360009,3181.7,3180.8,0.8257]
[1731784631298,3.14345,3181.3,3180.8,0.8257]
[1731784631611,3.14352,3181.2,3180.8,0.8257]
[1731784632808,3.14339,3181.3,3180.8,0.8257]
[1731784633140,3.1432,3181.5,3180.8,0.8257]
[1731784633141,3.14317,3181.5,3180.8,4.03242933]
[1731784633473,3.14317,3181.5,3180.9,6.14376]
[1731784633799,3.14327,3181.4,3180.8,0.88856933]
[1731784634311,3.14317,3181.5,3180.8,0.8257]
[1731784634626,3.14353,3181.2,3180.8,0.8257]
[1731784634937,3.1434,3181.3,3180.8,0.8257]
[1731784635143,3.14349,3181.2,3180.8,0.8257]
[1731784635549,3.1434,3181.3,3180.8,0.8257]
[1731784636907,3.14353,3181.2,3180.8,0.8257]
[1731784637426,0.62868,3181.2,3180.8,0.8257]
[1731784637631,0.62868,3181.2,3180.5,3.0]
[1731784637632,3.14406,3180.6,3180.5,0.3142]
[1731784637802,3.1443,3180.4,3180.2,0.8257]
[1731784640268,3.14435,3180.3,3180.2,0.8257]
[1731784640444,3.1443,3180.4,3180.2,0.8257]
[1731784640653,3.14435,3180.3,3180.2,0.8257]
[1731784643962,0.81718,3180.8,3180.2,0.8257]
[1731784644171,3.14364,3181.1,3180.3,3.8206]
[1731784644373,3.14373,3181.0,3180.4,0.8206]
[1731784644678,3.14373,3181.0,3180.4,1.7875548]
[1731784644856,0.4571,3181.3,3180.4,1.7875548]
[1731784645068,3.14391,3180.8,3180.4,0.8206]
[1731784645496,3.14391,3180.8,3180.2,6.45864]
[1731784647205,3.14396,3180.7,3180.2,6.45864]
[1731784647399,3.14396,3180.7,3180.1,3.3142]
[1731784647557,3.14396,3180.7,3180.2,0.3142]
[1731784647901,3.14445,3180.2,3179.8,0.3142]
[1731784648109,3.14445,3180.2,3179.3,2.70467804]
[1731784648110,3.14465,3180.0,3179.3,3.14527]
[1731784648419,3.14445,3180.2,3179.3,3.14527]
[1731784648420,3.14477,3179.9,3179.3,3.8434454]
[1731784649065,3.14449,3180.2,3179.3,0.6981054]
[1731784649295,3.14461,3180.1,3179.4,3.14522]
[1731784649611,3.14461,3180.1,3179.5,3.0]
[1731784650427,3.14461,3180.1,3179.6,3.0]
[1731784650632,3.14461,3180.1,3179.5,3.0]
[1731784650753,3.14461,3180.1,3179.5,6.14513]
[1731784650962,3.14465,3180.0,3179.5,3.0]
[1731784651573,3.14499,3179.7,3179.3,3.0]
[1731784651790,3.14499,3179.7,3179.1,0.3142]
[1731784651791,3.14505,3179.6,3179.1,3.3142]
[1731784652304,3.14499,3179.7,3179.1,3.3142]
[1731784652521,3.14503,3179.7,3179.1,0.3142]
[1731784652664,3.14503,3179.7,3179.0,3.0]
[1731784653015,3.14514,3179.5,3179.0,3.646985]
[1731784653163,3.14475,3180.0,3179.2,3.0]
[1731784653554,3.14475,3180.0,3179.4,3.0]
[1731784653805,3.14493,3179.8,3179.2,3.0]
[1731784653978,3.14482,3179.9,3179.4,3.0]
[1731784654176,3.14482,3179.9,3179.3,3.14533]
[1731784654177,3.14487,3179.8,3179.2,3.0]
[1731784654404,3.14487,3179.8,3179.3,0.614546]
[1731784656273,3.14519,3179.5,3179.0,0.63720129]
[1731784656472,3.14531,3179.4,3178.8,3.14582]
[1731784656701,3.14531,3179.4,3178.8,3.775004]
[1731784657104,3.1451,3179.6,3178.9,3.14572]
[1731784657664,3.14498,3179.7,3179.1,3.0]
[1731784657913,3.14498,3179.7,3179.1,6.14553]
[1731784658119,3.14498,3179.7,3179.0,0.06290435]
[1731784658265,3.14498,3179.7,3179.1,3.0]
[1731784659009,3.14612,3178.6,3178.0,3.14661]
[1731784659219,3.14531,3179.4,3177.9,0.06292763]
[1731784659522,3.14638,3178.3,3177.7,3.14689]
[1731784659876,3.14652,3178.2,3177.5,5.85176804]
[1731784660076,3.14623,3178.4,3177.6,3.7321268]
[1731784660319,3.14646,3178.2,3177.6,3.14695]
[1731784660519,3.14646,3178.2,3177.7,3.0]
[1731784661031,3.14655,3178.1,3177.5,0.6187304]
[1731784661253,3.14655,3178.1,3177.6,3.0]
[1731784661610,3.14666,3178.0,3177.5,0.67660304]
[1731784661950,3.14666,3178.0,3177.4,3.0]
[1731784662310,3.14675,3177.9,3177.2,3.14741]
[1731784662651,3.14675,3177.9,3177.0,3.14761]
[1731784662652,2.71395204,3178.9,3177.1,3.76084622]
[1731784662855,3.14683,3177.8,3177.2,0.69084362]
[1731784663057,3.14665,3178.0,3177.3,3.14724]
[1731784663208,3.14665,3178.0,3177.1,0.61338622]
[1731784663209,3.1468,3177.9,3177.1,0.61338622]
[1731784663409,3.1466,3178.1,3177.4,3.14713]
[1731784663862,3.14656,3178.1,3177.4,3.14713]
[1731784664164,3.14656,3178.1,3177.5,3.0]
[1731784664311,3.14665,3178.0,3177.5,3.0]
[1731784664737,0.314633,3178.3,3177.3,3.0]
[1731784664935,3.14608,3178.6,3177.3,3.14731]
[1731784664936,3.14671,3178.0,3177.3,3.14731]
[1731784665156,3.14671,3178.0,3177.4,3.0]
[1731784665524,3.14671,3178.0,3177.2,3.0]
[1731784665729,3.14671,3178.0,3177.1,0.61338622]
[1731784665930,3.14671,3178.0,3177.2,0.36133862]
[1731784666132,3.14646,3178.2,3177.2,3.36133862]
[1731784666768,3.14663,3178.0,3177.2,3.36133862]
[1731784667366,3.14641,3178.3,3177.2,3.36133862]
[1731784667520,3.14666,3178.0,3177.2,3.36133862]
[1731784669573,3.14681,3177.9,3177.2,3.36133862]
[1731784670264,3.14654,3178.1,3177.2,3.36133862]
[1731784670477,3.14663,3178.0,3177.2,3.36133862]
[1731784670769,3.1469,3177.8,3177.2,3.36133862]
[1731784671064,3.14693,3177.7,3177.2,0.36133862]
[1731784671234,3.14693,3177.7,3177.1,0.61338622]
[1731784671659,3.14684,3177.8,3177.1,0.61338622]
[1731784672470,3.14693,3177.7,3177.1,0.61338622]
[1731784672619,3.14693,3177.7,3177.1,1.28949584]
[1731784673372,3.14675,3177.9,3177.2,0.8007]
[1731784674123,3.14653,3178.1,3177.2,0.8007]
[1731784674317,3.14683,3177.8,3177.2,0.8007]
[1731784674514,3.14664,3178.0,3177.4,0.8007]
[1731784674715,3.14673,3177.9,3177.4,0.8007]
[1731784674917,3.14693,3177.7,3177.4,0.8007]
[1731784676574,0.4571,3178.1,3177.4,0.8007]
[1731784676788,3.14702,3177.7,3177.4,0.8007]
[1731784677082,3.1471,3177.6,3177.4,0.8007]
[1731784677384,3.14712,3177.5,3177.4,0.8007]
[1731784677536,3.14702,3177.7,3177.4,0.8007]
[1731784677739,3.14703,3177.6,3177.4,0.8007]
[1731784678726,3.14712,3177.5,3177.4,0.8007]
[1731784679368,3.14703,3177.6,3177.4,0.8007]
[1731784681486,3.14685,3177.8,3177.4,0.8007]
[1731784681636,3.92261703,3177.8,3177.4,0.8007]
[1731784681845,3.14673,3177.9,3177.4,0.8007]
[1731784682487,3.14665,3178.0,3177.4,0.8007]
[1731784682488,3.14712,3177.5,3177.4,0.8007]
[1731784683538,3.14723,3177.4,3177.1,0.7713]
[1731784683786,3.14712,3177.5,3177.1,0.7713]
[1731784683990,3.14735,3177.3,3177.1,0.7713]
[1731784684184,3.14742,3177.2,3177.1,0.7713]
[1731784684398,3.14735,3177.3,3176.5,0.7713]
[1731784684399,3.14755,3177.1,3176.5,0.7713]
[1731784684593,3.14735,3177.3,3176.5,0.7713]
[1731784684829,3.14746,3177.2,3176.5,0.7713]
[1731784685036,3.60397,3177.8,3176.5,0.7713]
[1731784685037,0.4571,3178.2,3177.0,0.7713]
[1731784685199,3.14718,3177.5,3177.0,0.7713]
[1731784685385,3.14723,3177.4,3177.0,0.7713]
[1731784685579,3.14718,3177.5,3177.0,0.7713]
[1731784685827,0.00942915,3178.3,3176.4,0.7713]
[1731784685828,0.79000986,3177.4,3176.4,0.7713]
[1731784686130,0.4571,3177.6,3176.4,0.7713]
[1731784686131,3.14761,3177.1,3176.4,0.7713]
[1731784686340,3.14761,3177.1,3176.5,0.391957]
[1731784686633,3.14761,3177.1,3176.6,0.7713]
[1731784686989,3.14732,3177.3,3176.6,0.7713]
[1731784687185,3.14742,3177.2,3176.7,0.62693459]
[1731784688602,3.14753,3177.1,3176.7,0.62693459]
[1731784688919,3.14745,3177.2,3176.7,0.62693459]
[1731784689532,3.14732,3177.3,3176.7,0.62693459]
[1731784689729,3.14752,3177.1,3176.7,0.62693459]
[1731784689951,3.14732,3177.3,3176.7,0.80595375]
[1731784690305,3.14752,3177.1,3176.7,0.80595375]
[1731784690931,3.14625691,3177.1,3176.7,0.80595375]
[1731784692949,3.14769,3177.0,3176.7,0.80595375]
[1731784693252,3.14664,3178.0,3176.6,0.7713]
[1731784693253,3.1479,3176.8,3176.6,0.7713]
[1731784693605,3.1479,3176.8,3175.7,0.17210064]
[1731784693606,3.14792,3176.7,3176.4,0.7713]
[1731784693950,0.75901052,3176.8,3176.2,0.7713]
[1731784693951,3.14831,3176.3,3176.2,0.7713]
[1731784694150,3.14831,3176.3,3175.6,0.7713]
[1731784694304,0.4571,3176.6,3175.6,0.7713]
[1731784694305,3.14863,3176.0,3175.6,0.7713]
[1731784694827,3.14884,3175.8,3175.6,0.7713]
[1731784695070,3.14811,3176.5,3175.6,0.7713]
[1731784695277,3.14899,3175.7,3175.3,0.7688]
[1731784695589,3.14907,3175.6,3175.3,0.7688]
[1731784695744,3.14907,3175.6,3175.5,0.61699342]
[1731784696547,3.14899,3175.7,3175.5,0.61699342]
[1731784696899,3.14881,3175.8,3175.5,0.61699342]
[1731784697485,0.009274,3176.7,3175.5,0.61699342]
[1731784697486,3.14854,3176.1,3175.6,0.7688]
[1731784697663,3.14862,3176.0,3175.6,1.18414519]
[1731784697869,3.14862,3176.0,3175.6,0.7688]
[1731784698293,3.14873,3175.9,3175.6,0.7688]
[1731784698451,3.14862,3176.0,3175.6,0.7688]
[1731784700455,3.14841,3176.2,3175.6,0.7688]
[1731784700659,3.14841,3176.2,3175.6,1.25137748]
[1731784700862,3.14854,3176.1,3175.7,0.31272558]
[1731784701040,3.14841,3176.2,3175.6,0.9386519]
[1731784701288,3.14841,3176.2,3175.6,1.25137748]
[1731784701455,3.14852,3176.1,3175.6,0.9386519]
[1731784701654,3.14852,3176.1,3175.7,0.18683709]
[1731784702189,3.14867,3176.0,3175.6,1.08152558]
[1731784702375,3.14867,3176.0,3175.6,0.7688]
[1731784702752,3.14867,3176.0,3175.7,0.3142]
[1731784705692,3.14874,3175.9,3175.7,0.3142]
[1731784706052,3.14874,3175.9,3175.6,0.7688]
[1731784706255,3.14878,3175.9,3175.6,0.7688]
[1731784706468,3.14857,3176.1,3175.6,0.7688]
[1731784706649,0.4571,3176.8,3175.7,0.791]
[1731784706882,3.14842,3176.2,3175.9,0.791]
[1731784707272,3.14851,3176.1,3176.0,0.23439294]
[1731784709601,3.9501774,3176.1,3176.0,0.23439294]
[1731784709806,5.43196614,3176.1,3176.0,0.23439294]
[1731784709959,3.14922,3175.4,3175.1,0.791]
[1731784710156,3.14922,3175.4,3175.2,0.23454544]
[1731784710404,3.60632,3175.4,3175.3,0.23454544]
[1731784710606,3.60632,3175.4,3174.8,0.791]
[1731784710792,3.14933,3175.3,3174.8,0.791]
[1731784711100,3.14933,3175.3,3174.8,1.1719878]
[1731784711403,3.14933,3175.3,3174.9,0.85017292]
[1731784711603,3.14933,3175.3,3175.0,0.23452395]
[1731784711896,3.14933,3175.3,3175.1,0.23452395]
[1731784712109,3.14911,3175.5,3175.2,0.23452395]
[1731784712319,3.14874,3175.9,3175.3,4.02552395]
[1731784712458,3.14874,3175.9,3175.4,0.90754415]
[1731784712653,3.14874,3175.9,3175.5,0.23452395]
[1731784712903,3.14874,3175.9,3175.6,0.23452395]
[1731784713194,3.14874,3175.9,3175.4,0.6730202]
[1731784713195,3.14874,3175.9,3175.7,0.23452395]
[1731784713382,3.14874,3175.9,3175.8,0.23452395]
[1731784713587,3.14874,3175.9,3175.4,0.6730202]
[1731784713588,3.14891,3175.7,3175.4,0.6730202]
[1731784714026,3.14891,3175.7,3175.5,0.23460274]
[1731784714518,3.14874,3175.9,3175.6,0.23460274]
[1731784714727,3.14854,3176.1,3175.7,1.04870274]
[1731784714878,3.96077199,3176.1,3175.8,0.23460274]
[1731784715072,3.14854,3176.1,3175.9,0.23460274]
[1731784715273,3.14833,3176.3,3176.0,0.23460274]
[1731784715520,3.14833,3176.3,3176.1,0.23460274]
[1731784715832,3.14833,3176.3,3175.7,3.8141]
[1731784715833,3.14822,3176.4,3176.2,0.23460274]
[1731784715976,3.14786,3176.8,3176.3,0.23460274]
[1731784716176,0.77557045,3176.7,3176.4,0.60994082]
[1731784716426,0.77557045,3176.7,3176.5,0.23460274]
[1731784716571,0.77557045,3176.7,3176.6,0.23460274]